bitfinex/quotes_ETHUSD_20240602
["timestamp","ask_amount","ask_price","bid_price","bid_amount"]
[1717354450371,0.75,3772.3,3771.9,0.561]
[1717354454236,0.75,3772.3,3772.1,0.561]
[1717354456231,0.13821288,3772.2,3772.1,0.561]
[1717354457910,0.13821288,3772.2,3771.6,2.373]
[1717354458250,0.13821288,3772.2,3772.0,0.561]
[1717354458391,2.65119,3771.9,3771.3,2.373]
[1717354458597,2.65119,3771.9,3771.5,0.561]
[1717354458823,0.13821719,3771.8,3771.5,0.561]
[1717354459137,0.88821719,3771.8,3771.5,0.561]
[1717354471154,0.88821719,3771.8,3771.3,2.373]
[1717354471389,2.65137,3771.7,3771.4,0.561]
[1717354471598,2.78925281,3771.7,3771.4,0.561]
[1717354482672,2.78925281,3771.7,3770.8,2.3692]
[1717354482933,3.24465281,3771.7,3771.1,0.561]
[1717354483230,2.65165,3771.3,3771.1,0.561]
[1717354483399,0.4554,3771.5,3770.5,2.3692]
[1717354483599,0.1377542,3771.2,3770.7,0.561]
[1717354483832,0.75,3771.0,3770.7,0.561]
[1717354484437,0.4554,3771.5,3770.5,2.3692]
[1717354484438,0.1377542,3770.9,3770.5,2.3692]
[1717354484614,0.1377542,3770.9,3770.8,0.561]
[1717354484815,2.65179,3771.1,3770.8,0.561]
[1717354485003,0.1373125,3770.9,3770.8,0.561]
[1717354485204,2.916969,3771.1,3770.8,0.561]
[1717354485502,0.1373125,3770.9,3770.5,2.3692]
[1717354485688,2.916969,3771.1,3770.8,0.561]
[1717354485907,0.75,3771.0,3770.8,0.561]
[1717354486187,0.1373125,3770.9,3770.5,2.3692]
[1717354486589,0.1373125,3770.9,3770.8,0.561]
[1717354486786,2.65179,3771.1,3770.8,0.561]
[1717354487006,0.1372396,3770.9,3770.8,0.561]
[1717354487213,0.75,3771.0,3770.8,0.561]
[1717354487538,0.1372396,3770.9,3770.8,0.561]
[1717354487886,0.1372396,3770.9,3770.5,2.3692]
[1717354488086,2.916969,3771.1,3770.7,0.561]
[1717354488331,0.2916969,3771.0,3770.7,0.561]
[1717354488528,2.65188,3770.9,3770.5,0.561]
[1717354488898,2.78907244,3770.9,3770.2,2.3801]
[1717354489224,0.35361693,3770.8,3770.2,2.3801]
[1717354489444,0.35361693,3770.8,3770.4,0.561]
[1717354489647,0.13704231,3770.7,3770.4,0.561]
[1717354490141,0.13688358,3770.6,3770.4,0.561]
[1717354490357,0.35361693,3770.8,3770.4,0.561]
[1717354490494,0.13688358,3770.5,3770.4,0.561]
[1717354490922,0.35361693,3770.8,3770.4,0.561]
[1717354491238,0.13688358,3770.5,3770.4,0.561]
[1717354491398,0.35361693,3770.8,3770.4,0.561]
[1717354491733,0.13687501,3770.5,3770.4,0.561]
[1717354491937,2.65204,3770.7,3770.4,0.561]
[1717354492242,0.13678492,3770.5,3770.4,0.561]
[1717354492535,0.30056569,3770.6,3770.4,0.561]
[1717354492889,0.30056569,3770.6,3770.2,2.3801]
[1717354492890,0.13675919,3770.5,3770.2,2.3801]
[1717354493095,0.13675919,3770.5,3770.2,0.561]
[1717354493354,0.13675919,3770.5,3770.4,0.561]
[1717354493698,2.65204,3770.7,3770.4,0.561]
[1717354493905,0.13675919,3770.5,3770.4,0.561]
[1717354494341,2.65204,3770.7,3770.4,0.561]
[1717354494524,0.13675919,3770.5,3770.4,0.561]
[1717354494832,2.65204,3770.7,3770.4,0.561]
[1717354495133,0.13670769,3770.5,3770.4,0.561]
[1717354495346,2.65204,3770.7,3770.4,0.561]
[1717354495493,0.13670769,3770.6,3770.4,0.561]
[1717354495687,0.13673342,3770.5,3770.4,0.561]
[1717354496135,2.65204,3770.7,3770.4,0.561]
[1717354496301,0.13673342,3770.5,3770.4,0.561]
[1717354496689,2.917244,3770.7,3770.4,0.561]
[1717354496905,0.13673772,3770.5,3770.4,0.561]
[1717354497104,0.1367463,3770.5,3770.4,0.561]
[1717354497432,2.65204,3770.7,3770.4,0.561]
[1717354497610,0.1367463,3770.5,3770.4,0.561]
[1717354497847,2.65204,3770.7,3770.4,0.561]
[1717354498176,0.1367463,3770.5,3770.4,0.561]
[1717354498531,0.1367892,3770.5,3770.4,0.561]
[1717354498747,2.65204,3770.7,3770.4,0.561]
[1717354498991,0.13680207,3770.5,3770.4,0.561]
[1717354499180,2.65204,3770.7,3770.4,0.561]
[1717354499349,0.13680207,3770.5,3770.4,0.561]
[1717354499550,2.65204,3770.7,3770.4,0.561]
[1717354500250,0.13681925,3770.6,3770.4,0.561]
[1717354502635,0.13681925,3770.6,3770.5,2.3801]
[1717354504552,0.13681925,3770.6,3770.5,2.9411]
[1717354510845,5.65181,3771.1,3770.5,2.9411]
[1717354511042,5.65181,3771.1,3770.7,0.561]
[1717354513823,6.262531,3771.1,3770.5,0.561]
[1717354514241,3.610721,3771.1,3770.5,0.561]
[1717354514447,2.65195,3770.9,3770.5,0.561]
[1717354515002,3.10735,3770.9,3770.0,5.01245]
[1717354515304,2.65209,3770.7,3770.0,2.36]
[1717354515509,2.65209,3770.7,3770.2,0.561]
[1717354515760,2.65209,3770.7,3770.0,2.36]
[1717354515905,2.65209,3770.7,3770.0,2.921]
[1717354516318,2.65218,3770.5,3770.0,2.921]
[1717354516726,0.13656181,3770.4,3770.0,2.921]
[1717354519735,0.13656181,3770.4,3770.0,2.36]
[1717354519933,0.13656181,3770.4,3770.1,0.561]
[1717354520129,0.41543599,3770.4,3770.1,0.561]
[1717354520954,2.6523,3770.3,3769.7,2.4785]
[1717354521262,0.13651034,3770.2,3769.8,0.561]
[1717354521419,0.13651034,3770.2,3769.7,2.4785]
[1717354521420,2.6523,3770.3,3769.7,2.4785]
[1717354521760,2.6523,3770.3,3769.7,3.0395]
[1717354522063,0.13651034,3770.2,3769.7,3.0395]
[1717354523323,2.65246,3770.1,3769.7,0.561]
[1717354523767,0.13635585,3770.0,3769.4,2.4785]
[1717354524180,0.13635585,3770.0,3769.7,0.561]
[1717354524822,0.13635585,3770.0,3769.4,2.4785]
[1717354525028,2.65259,3769.9,3769.4,2.4785]
[1717354525226,2.7888171,3769.9,3769.4,2.4785]
[1717354525428,3.55555379,3769.9,3768.9,2.4785]
[1717354525628,3.55555379,3769.9,3769.3,0.561]
[1717354526435,3.10015379,3769.9,3769.5,0.561]
[1717354529549,3.10015379,3769.9,3769.3,2.4785]
[1717354529741,3.10015379,3769.9,3769.5,0.561]
[1717354529944,0.31001538,3769.8,3769.3,2.4785]
[1717354530275,0.13614986,3769.7,3769.3,3.0395]
[1717354530468,0.13614986,3769.7,3769.3,2.4785]
[1717354530635,0.31001538,3769.8,3769.3,3.0395]
[1717354530837,0.13614986,3769.6,3769.4,0.561]
[1717354531081,2.94902054,3769.7,3769.4,0.561]
[1717354531287,0.13607261,3769.5,3769.4,0.561]
[1717354531585,2.94902054,3769.7,3769.1,2.312]
[1717354531770,0.1359696,3769.5,3769.4,0.561]
[1717354532079,2.94902054,3769.7,3769.1,2.312]
[1717354532285,0.1359696,3769.5,3769.1,2.312]
[1717354532444,2.94902054,3769.7,3769.1,2.312]
[1717354532795,2.94902054,3769.7,3769.3,0.561]
[1717354532980,0.13592236,3769.6,3769.3,0.561]
[1717354533553,0.13592236,3769.6,3769.5,0.561]
[1717354541099,0.13592236,3769.6,3769.1,2.312]
[1717354541296,2.65287,3769.5,3769.4,0.561]
[1717354541815,2.78891686,3769.5,3769.4,0.561]
[1717354561945,2.78891686,3769.5,3769.1,2.312]
[1717354562145,2.78891686,3769.5,3769.3,0.561]
[1717354562380,2.78891686,3769.5,3769.1,2.312]
[1717354562550,2.78891686,3769.5,3769.3,0.561]
[1717354562876,2.78891686,3769.5,3769.1,2.312]
[1717354563078,2.78891686,3769.5,3769.2,0.561]
[1717354565280,0.13604686,3769.5,3769.4,2.9637]
[1717354565565,3.0,3770.4,3769.4,2.9637]
[1717354565780,3.0,3770.4,3770.0,0.561]
[1717354565941,0.13596529,3770.3,3770.0,0.561]
[1717354566140,1.04059653,3770.2,3769.8,0.561]
[1717354566367,3.69303653,3770.2,3769.8,0.561]
[1717354566576,3.0,3770.1,3769.8,0.561]
[1717354566780,3.80546207,3770.1,3769.8,0.561]
[1717354567380,3.80546207,3770.1,3769.4,2.4027]
[1717354567675,3.13615842,3770.1,3769.8,0.561]
[1717354570286,3.13615842,3770.1,3769.8,2.8496]
[1717354574707,0.13615842,3770.1,3770.0,0.561]
[1717354574859,0.13615842,3770.1,3770.0,2.8496]
[1717354575058,7.27,3770.5,3770.0,2.8496]
[1717354575261,7.27,3770.5,3770.4,0.561]
[1717354575511,2.65196,3770.8,3770.4,0.561]
[1717354575803,2.65196,3770.8,3770.2,0.561]
[1717354575804,0.265196,3770.7,3770.2,0.561]
[1717354575974,2.65211,3770.6,3770.2,0.561]
[1717354576400,0.13634727,3770.5,3770.2,0.561]
[1717354577309,0.13634727,3770.5,3770.4,0.561]
[1717354578702,3.0,3770.8,3770.4,0.561]
[1717354579001,0.13681923,3770.5,3770.4,0.561]
[1717354579502,3.0,3770.8,3770.4,0.561]
[1717354579798,3.0,3770.8,3770.6,0.561]
[1717354581219,2.65189,3770.9,3770.6,0.561]
[1717354582829,2.65189,3770.9,3770.7,2.2886]
[1717354587954,3.0,3771.3,3770.7,2.2886]
[1717354587955,2.65168,3771.2,3770.7,2.2886]
[1717354588149,3.565168,3771.1,3770.7,2.2886]
[1717354588425,3.0,3771.1,3770.7,2.2886]
[1717354591391,0.13710664,3771.0,3770.7,2.2886]
[1717354592973,0.13710664,3771.0,3770.8,0.561]
[1717354598364,0.13710664,3771.0,3770.9,2.3784]
[1717354598877,3.0,3771.4,3770.9,2.3784]
[1717354599183,3.0,3771.4,3771.0,0.561]
[1717354602874,3.0,3771.4,3770.9,2.9394]
[1717354602875,2.65163,3771.3,3770.9,2.9394]
[1717354606302,0.13728678,3771.2,3770.9,2.9394]
[1717354606504,2.65163,3771.3,3770.9,2.9394]
[1717354606797,0.13728678,3771.1,3770.9,2.9394]
[1717354606989,2.65163,3771.3,3770.9,2.9394]
[1717354607317,2.91818338,3771.3,3770.9,2.9394]
[1717354607477,0.13728678,3771.2,3770.9,2.9394]
[1717354607673,2.91818338,3771.3,3770.9,2.9394]
[1717354607991,0.13728678,3771.1,3770.9,2.9394]
[1717354608186,2.91818338,3771.3,3770.9,2.9394]
[1717354608378,0.13728678,3771.0,3770.9,2.9394]
[1717354608578,2.65163,3771.3,3770.9,2.9394]
[1717354608774,0.13728678,3771.0,3770.9,2.9394]
[1717354609398,2.65163,3771.3,3770.9,2.9394]
[1717354609587,0.13728678,3771.0,3770.9,2.9394]
[1717354609788,2.65163,3771.3,3770.9,2.9394]
[1717354610002,0.13728678,3771.0,3770.9,2.9394]
[1717354610205,2.65163,3771.3,3770.9,2.9394]
[1717354610435,0.13728678,3771.0,3770.9,2.9394]
[1717354610583,2.65163,3771.3,3770.9,2.9394]
[1717354610781,0.13728678,3771.0,3770.9,2.9394]
[1717354611403,2.65163,3771.3,3770.9,2.9394]
[1717354611607,0.13728678,3771.0,3770.9,2.9394]
[1717354611921,0.13729535,3771.0,3770.9,2.9394]
[1717354612215,3.216793,3771.3,3770.9,2.9394]
[1717354612438,0.13729535,3771.0,3770.9,2.9394]
[1717354612577,2.65163,3771.3,3770.9,2.9394]
[1717354612926,3.2733093,3771.3,3770.9,2.9394]
[1717354613116,0.13729535,3771.2,3770.9,2.9394]
[1717354613277,3.2733093,3771.3,3770.9,2.9394]
[1717354613477,0.13728678,3771.1,3770.9,2.9394]
[1717354613813,3.2733093,3771.3,3770.9,2.9394]
[1717354613972,0.13728678,3771.0,3770.9,2.9394]
[1717354614175,2.65163,3771.3,3770.9,2.9394]
[1717354614374,0.13728678,3771.0,3770.9,2.9394]
[1717354614576,2.65163,3771.3,3770.9,2.9394]
[1717354614778,0.13728678,3771.0,3770.9,2.9394]
[1717354615274,2.65163,3771.3,3770.9,2.9394]
[1717354615480,0.13728678,3771.0,3770.9,2.9394]
[1717354615711,3.216793,3771.3,3770.9,2.9394]
[1717354615880,0.13728678,3771.0,3770.9,2.9394]
[1717354616206,3.216793,3771.3,3770.9,2.9394]
[1717354616412,0.13728678,3771.0,3770.9,2.9394]
[1717354616623,3.216793,3771.3,3770.9,2.9394]
[1717354616821,0.13727821,3771.0,3770.9,2.9394]
[1717354617022,2.65163,3771.3,3770.9,2.9394]
[1717354617184,0.13727821,3771.0,3770.9,2.9394]
[1717354617385,2.65163,3771.3,3770.9,2.9394]
[1717354618027,0.13727821,3771.2,3770.9,2.9394]
[1717354618381,2.65163,3771.3,3770.9,2.9394]
[1717354618726,3.216793,3771.3,3770.9,2.9394]
[1717354618911,0.13728678,3771.2,3770.9,2.9394]
[1717354619097,3.216793,3771.3,3770.9,2.9394]
[1717354619295,0.13728678,3771.1,3770.9,2.9394]
[1717354619620,2.65163,3771.3,3770.9,2.9394]
[1717354619796,0.13728678,3771.0,3770.9,2.9394]
[1717354619994,3.2733093,3771.3,3770.9,2.9394]
[1717354619995,2.65163,3771.3,3770.9,2.9394]
[1717354620187,0.13728678,3771.0,3770.9,2.9394]
[1717354620387,2.65163,3771.3,3770.9,2.9394]
[1717354620588,0.13728678,3771.0,3770.9,2.9394]
[1717354620895,0.13732538,3771.0,3770.9,2.9394]
[1717354621098,3.0,3771.6,3770.9,2.9394]
[1717354621300,3.0,3771.6,3771.4,2.4641]
[1717354623548,7.27,3771.7,3771.4,2.4641]
[1717354623708,2.65112,3772.0,3771.5,0.561]
[1717354623904,3.0,3771.9,3771.7,0.561]
[1717354624108,3.0,3771.9,3771.7,3.0251]
[1717354636217,0.13751837,3771.8,3771.7,3.0251]
[1717354640539,3.0,3772.2,3771.7,3.0251]
[1717354640744,3.0,3772.2,3771.9,0.561]
[1717354649364,2.65104,3772.1,3771.9,0.561]
[1717354649571,3.0,3772.0,3771.9,0.561]
[1717354650739,3.0,3772.0,3771.9,2.927]
[1717354651170,3.1375055,3772.0,3771.9,2.927]
[1717354663563,3.1375055,3772.0,3771.9,2.366]
[1717354663776,3.1375055,3772.0,3771.9,2.927]
[1717354666884,3.1375055,3772.0,3771.9,0.561]
[1717354672607,3.1375055,3772.0,3771.2,2.2633]
[1717354672897,2.65119,3771.9,3771.7,0.561]
[1717354673368,0.137677,3771.8,3771.7,0.561]
[1717354680836,3.0,3772.1,3771.7,0.561]
[1717354681135,3.0,3772.1,3771.9,0.561]
[1717354681300,0.13767701,3772.0,3771.9,0.561]
[1717354687024,0.13767701,3772.0,3771.6,2.2633]
[1717354687230,0.13767701,3772.0,3771.8,0.561]
[1717354705664,2.78883701,3772.0,3771.8,0.561]
[1717354712218,2.65151,3771.5,3771.1,2.3931]
[1717354712515,2.65166,3771.3,3770.7,2.3931]
[1717354712660,2.65166,3771.3,3771.1,0.561]
[1717354713060,0.13747117,3771.2,3771.1,0.561]
[1717354713296,2.65166,3771.3,3771.1,0.561]
[1717354713500,0.13747117,3771.2,3771.1,0.561]
[1717354713871,2.65166,3771.3,3771.1,0.561]
[1717354714100,0.13747117,3771.2,3771.1,0.561]
[1717354714474,2.65166,3771.3,3771.1,0.561]
[1717354714667,0.13737683,3771.2,3771.1,0.561]
[1717354715099,2.65166,3771.3,3771.1,0.561]
[1717354715287,0.13737683,3771.2,3771.1,0.561]
[1717354715602,2.65166,3771.3,3771.1,0.561]
[1717354715932,0.13733393,3771.2,3771.1,0.561]
[1717354716268,2.65166,3771.3,3771.1,0.561]
[1717354716602,0.13733393,3771.2,3771.1,0.561]
[1717354716807,2.65166,3771.3,3771.1,0.561]
[1717354717102,0.1373468,3771.2,3771.1,0.561]
[1717354717465,2.65166,3771.3,3771.1,0.561]
[1717354717697,0.1373468,3771.2,3771.1,0.561]
[1717354718002,2.65166,3771.3,3771.1,0.561]
[1717354718295,0.1373468,3771.2,3771.1,0.561]
[1717354718702,2.65166,3771.3,3771.1,0.561]
[1717354719060,0.1373811,3771.2,3771.1,0.561]
[1717354719259,2.65166,3771.3,3771.1,0.561]
[1717354719460,0.1373811,3771.2,3771.1,0.561]
[1717354719715,2.65166,3771.3,3771.1,0.561]
[1717354720080,0.1373811,3771.2,3771.1,0.561]
[1717354720509,2.65166,3771.3,3771.1,0.561]
[1717354721011,0.13739397,3771.2,3771.1,0.561]
[1717354721211,2.65139,3771.7,3771.1,0.561]
[1717354721511,0.13740257,3771.6,3771.4,0.561]
[1717354727217,0.13740257,3771.6,3771.0,2.3931]
[1717354727423,0.13740257,3771.6,3771.4,0.561]
[1717354727725,2.65146,3771.5,3770.8,2.2572]
[1717354727921,2.65146,3771.5,3771.2,0.561]
[1717354728122,0.13754837,3771.4,3771.2,0.561]
[1717354728323,0.13754837,3771.4,3770.8,2.2572]
[1717354728533,0.13754837,3771.4,3771.2,0.561]
[1717354728730,0.13754837,3771.4,3770.8,2.2572]
[1717354728948,0.13754837,3771.4,3771.2,0.561]
[1717354731174,0.13754837,3771.4,3770.8,2.2572]
[1717354731331,2.65164,3771.3,3770.8,2.2572]
[1717354731530,2.65164,3771.3,3771.1,0.561]
[1717354731734,0.13743257,3771.2,3771.1,0.561]
[1717354732152,2.65164,3771.3,3771.1,0.561]
[1717354732363,0.13743257,3771.2,3771.1,0.561]
[1717354732748,2.65164,3771.3,3771.1,0.561]
[1717354732949,0.1374283,3771.2,3771.1,0.561]
[1717354733285,2.65164,3771.3,3771.1,0.561]
[1717354733450,0.1374283,3771.2,3771.1,0.561]
[1717354733647,2.65164,3771.3,3771.1,0.561]
[1717354733871,0.13744543,3771.2,3771.1,0.561]
[1717354734084,2.65164,3771.3,3771.1,0.561]
[1717354734231,0.13744543,3771.2,3771.1,0.561]
[1717354734431,2.65164,3771.3,3771.1,0.561]
[1717354734667,0.13744543,3771.2,3771.1,0.561]
[1717354735083,2.65164,3771.3,3770.8,2.2572]
[1717354735288,0.13744543,3771.2,3771.1,0.561]
[1717354735790,2.65164,3771.3,3771.1,0.561]
[1717354735955,0.13744543,3771.2,3771.1,0.561]
[1717354736283,2.65164,3771.3,3771.1,0.561]
[1717354736589,0.13744543,3771.2,3771.1,0.561]
[1717354736945,2.65164,3771.3,3771.1,0.561]
[1717354737236,0.13744543,3771.2,3771.1,0.561]
[1717354737442,2.65164,3771.3,3771.1,0.561]
[1717354737977,0.13745403,3771.2,3771.1,0.561]
[1717354738277,2.65164,3771.3,3771.1,0.561]
[1717354738456,0.13745403,3771.2,3771.1,0.561]
[1717354738654,2.65164,3771.3,3771.1,0.561]
[1717354738851,0.13745403,3771.2,3771.1,0.561]
[1717354739050,2.65164,3771.3,3771.1,0.561]
[1717354739265,0.1374626,3771.2,3771.1,0.561]
[1717354739492,2.65164,3771.3,3771.1,0.561]
[1717354739782,0.1374626,3771.2,3770.8,2.2572]
[1717354740077,2.65164,3771.3,3771.1,0.561]
[1717354740302,0.1374626,3771.2,3770.8,2.2572]
[1717354740436,2.65176,3771.1,3770.8,2.2572]
[1717354740642,0.13744973,3771.0,3770.8,2.2572]
[1717354740844,0.13744973,3771.0,3770.9,0.561]
[1717354741644,0.13744973,3771.0,3770.8,2.2572]
[1717354741845,0.13744973,3771.0,3770.8,2.8182]
[1717354746682,0.13744973,3771.0,3770.8,2.2572]
[1717354746842,0.13744973,3771.0,3770.9,0.561]
[1717354752088,0.13744973,3771.0,3770.9,2.825]
[1717354755602,7.27,3771.7,3771.0,2.65178]
[1717354755810,7.27,3771.7,3771.6,2.825]
[1717354756031,2.65131,3771.8,3771.6,2.264]
[1717354756193,0.13723102,3771.7,3771.6,2.825]
[1717354756930,2.65131,3771.8,3771.6,2.825]
[1717354757239,0.13723102,3771.7,3771.6,2.825]
[1717354757710,2.65131,3771.8,3771.6,2.825]
[1717354758797,5.65103,3772.2,3771.6,2.825]
[1717354758998,5.65103,3772.2,3771.9,0.561]
[1717354759842,2.65103,3772.2,3772.0,2.264]
[1717354760051,2.65103,3772.2,3772.1,0.561]
[1717354763907,2.65076,3772.5,3772.1,0.561]
[1717354764109,2.65076,3772.5,3772.4,0.561]
[1717354765434,9.92049,3772.9,3772.4,2.825]
[1717354765638,3.0,3772.8,3772.6,0.561]
[1717354771661,0.13318355,3772.7,3772.6,0.561]
[1717354771816,3.0,3772.8,3772.6,0.561]
[1717354772138,0.13318785,3772.7,3772.6,0.561]
[1717354772520,3.0,3772.8,3772.6,0.561]
[1717354772820,0.13318785,3772.7,3772.6,0.561]
[1717354773064,3.0,3772.8,3772.6,0.561]
[1717354773260,0.13318785,3772.7,3772.6,0.561]
[1717354773472,3.0,3772.8,3772.6,0.561]
[1717354773622,0.13318785,3772.7,3772.6,0.561]
[1717354773824,3.0,3772.8,3772.6,0.561]
[1717354774025,0.13318785,3772.7,3772.6,0.561]
[1717354774224,3.0,3772.8,3772.6,0.561]
[1717354774519,0.13320929,3772.7,3772.6,0.561]
[1717354774932,3.0,3772.8,3772.6,0.561]
[1717354775150,0.13320929,3772.7,3772.6,0.561]
[1717354775626,3.0,3772.8,3772.6,0.561]
[1717354775937,0.13320929,3772.7,3772.6,0.561]
[1717354776132,0.13320929,3772.7,3772.1,2.3899]
[1717354776339,2.65062,3772.7,3772.5,0.561]
[1717354776521,0.13315355,3772.6,3772.5,0.561]
[1717354783487,0.13315355,3772.6,3772.5,2.9509]
[1717354800197,0.13315355,3772.6,3772.5,2.93759]
[1717354800402,0.13315355,3772.6,3772.5,2.37659]
[1717354800604,0.13315355,3772.6,3772.5,2.93759]
[1717354801807,0.13315355,3772.6,3772.5,2.37659]
[1717354802214,0.13315355,3772.6,3772.3,2.65085]
[1717354802383,0.13315355,3772.6,3772.5,0.561]
[1717354802728,0.13315355,3772.6,3771.9,2.65113]
[1717354803432,0.13315355,3772.6,3772.1,0.561]
[1717354803585,2.65097,3772.2,3771.4,2.3896]
[1717354803787,0.4687,3772.1,3771.6,0.561]
[1717354804223,2.65111,3772.0,3771.6,0.561]
[1717354804783,2.65111,3772.0,3771.8,0.561]
[1717354805726,2.65111,3772.0,3771.4,2.3896]
[1717354806089,2.65111,3772.0,3770.9,2.3896]
[1717354806090,2.65135,3771.7,3770.9,2.3896]
[1717354806504,2.65135,3771.7,3771.2,0.561]
[1717354807188,0.4687,3771.8,3770.4,2.65219]
[1717354807189,2.65158,3771.4,3770.4,2.65219]
[1717354807388,2.65158,3771.4,3770.9,0.561]
[1717354807810,2.65158,3771.4,3770.4,2.65219]
[1717354808017,2.65158,3771.4,3771.0,0.561]
[1717354810049,2.65128,3771.8,3771.2,0.561]
[1717354810213,2.65128,3771.8,3771.7,0.561]
[1717354810418,0.4687,3772.2,3771.7,0.561]
[1717354810419,2.65101,3772.2,3771.7,0.561]
[1717354810615,2.65101,3772.2,3771.9,0.561]
[1717354810952,2.65101,3772.2,3772.1,0.561]
[1717354814541,2.65101,3772.2,3771.9,0.561]
[1717354814767,2.65101,3772.2,3771.3,2.65158]
[1717354815054,2.65101,3772.2,3771.7,0.561]
[1717354815762,2.65101,3772.2,3771.1,2.3635]
[1717354815763,0.565101,3772.2,3771.1,2.3635]
[1717354815944,2.65127,3771.8,3771.5,0.561]
[1717354816456,0.13335949,3771.7,3771.5,0.561]
[1717354816815,2.65127,3771.8,3771.5,0.561]
[1717354817156,0.13335949,3771.6,3771.5,0.561]
[1717354817355,0.13335949,3771.7,3771.5,0.561]
[1717354817559,2.65127,3771.8,3771.5,0.561]
[1717354817751,3.0,3772.6,3771.1,2.3635]
[1717354817752,0.13335949,3771.6,3771.2,2.65164]
[1717354818077,2.65102,3772.2,3771.5,0.561]
[1717354818365,2.65102,3772.2,3771.9,0.561]
[1717354819239,2.65102,3772.2,3772.1,0.561]
[1717354819438,5.65074,3772.6,3772.1,0.561]
[1717354820365,2.65074,3772.6,3772.5,0.561]
[1717354822530,2.65074,3772.6,3771.8,5.01472]
[1717354822874,2.65074,3772.6,3772.2,0.561]
[1717354828985,2.65074,3772.6,3772.4,0.561]
[1717354830595,0.13376241,3772.5,3772.4,0.561]
[1717354831013,3.0,3772.9,3772.4,0.561]
[1717354831213,0.13379241,3772.5,3772.4,0.561]
[1717354831399,3.0,3772.9,3772.4,0.561]
[1717354831726,0.13379241,3772.5,3772.4,0.561]
[1717354832187,3.0,3772.9,3772.4,0.561]
[1717354832383,0.13379241,3772.5,3772.4,0.561]
[1717354832942,3.0,3772.9,3772.4,0.561]
[1717354833227,0.13380101,3772.5,3772.4,0.561]
[1717354833411,3.0,3772.9,3772.4,0.561]
[1717354833612,0.13380101,3772.5,3772.4,0.561]
[1717354833798,3.0,3772.9,3772.4,0.561]
[1717354834001,0.13379671,3772.5,3772.4,0.561]
[1717354834200,3.565046,3772.9,3772.4,0.561]
[1717354834511,0.13379671,3772.5,3772.4,0.561]
[1717354834682,3.0,3772.9,3772.4,0.561]
[1717354834883,0.13379671,3772.5,3772.4,0.561]
[1717354835132,3.0,3772.9,3772.4,0.561]
[1717354835439,0.565046,3772.8,3772.4,0.561]
[1717354835620,0.69884271,3772.8,3772.4,0.561]
[1717354837583,0.13379671,3772.8,3772.7,0.561]
[1717354837796,7.27,3773.3,3772.5,2.2944]
[1717354838060,0.13379241,3772.8,3772.5,0.561]
[1717354838361,2.65029,3773.2,3772.5,0.561]
[1717354838497,0.13379672,3772.7,3772.5,0.561]
[1717354838701,0.13379672,3772.7,3772.2,2.65092]
[1717354839043,0.13384815,3772.6,3772.5,0.561]
[1717354839195,2.65029,3773.2,3772.5,0.561]
[1717354839535,0.13384815,3772.6,3772.5,0.561]
[1717354839736,2.65029,3773.2,3772.5,0.561]
[1717354839923,0.13384815,3772.6,3772.5,0.561]
[1717354840136,2.65029,3773.2,3772.5,0.561]
[1717354840317,0.13390385,3772.6,3772.5,0.561]
[1717354840496,2.65029,3773.2,3772.5,0.561]
[1717354840701,0.13390385,3772.6,3772.2,2.65092]
[1717354840937,2.65029,3773.2,3772.5,0.561]
[1717354841270,2.65029,3773.2,3772.7,0.561]
[1717354841956,2.65005,3773.6,3773.1,0.561]
[1717354842245,3.42770612,3773.6,3773.1,0.561]
[1717354842409,2.65005,3773.6,3773.1,0.561]
[1717354844246,2.65005,3773.6,3772.7,2.2944]
[1717354844454,2.65005,3773.6,3773.0,0.561]
[1717354845653,0.13409241,3773.5,3773.0,0.561]
[1717354852435,2.65013,3773.4,3772.7,2.2944]
[1717354852642,2.78424811,3773.4,3773.0,0.561]
[1717354854311,0.41254292,3773.4,3772.1,2.327]
[1717354854511,0.41254292,3773.4,3772.1,4.97797]
[1717354854512,2.65032,3773.2,3772.1,4.97797]
[1717354854855,2.65047,3773.0,3772.4,0.561]
[1717354855413,0.13431094,3772.9,3772.4,0.561]
[1717354855956,0.13431094,3772.9,3772.6,0.561]
[1717354858459,2.65056,3772.8,3772.1,2.327]
[1717354858644,0.4687,3772.8,3771.8,2.327]
[1717354858852,2.6509,3772.3,3771.9,0.561]
[1717354859415,0.1341224,3772.2,3771.9,0.561]
[1717354861534,0.1341224,3772.2,3771.8,2.327]
[1717354861868,0.41262464,3772.2,3771.8,2.327]
[1717354862068,0.1341224,3772.2,3771.9,0.561]
[1717354865271,0.1341224,3772.2,3772.1,0.561]
[1717354866192,0.1341224,3772.2,3771.8,2.327]
[1717354866513,0.1341224,3772.2,3772.0,0.561]
[1717354867078,0.1341224,3772.2,3771.8,2.327]
[1717354867277,0.1341224,3772.2,3771.9,0.561]
[1717354870365,0.1341224,3772.2,3771.2,2.3293]
[1717354870366,0.88132464,3772.2,3771.2,2.3293]
[1717354870572,2.65126,3771.8,3771.3,0.561]
[1717354870765,0.13352239,3771.7,3771.3,0.561]
[1717354870967,2.65126,3771.8,3771.2,2.3293]
[1717354871182,0.13350095,3771.7,3771.3,0.561]